bitfinex/quotes_BTCUSD_20230115
["timestamp","ask_amount","ask_price","bid_price","bid_amount"]
[1673814914963,2.82354813,20866.0,20864.0,0.00930024]
[1673814915232,3.39773881,20865.0,20864.0,0.00930024]
[1673814915487,4.24148857,20865.0,20864.0,0.00930024]
[1673814915765,4.71559074,20865.0,20864.0,0.00930024]
[1673814916030,4.71559074,20865.0,20861.0,0.00848935]
[1673814916031,4.8093495,20865.0,20861.0,0.00848935]
[1673814916306,0.70092227,20862.0,20861.0,0.00848935]
[1673814916564,2.78213769,20862.0,20861.0,0.00848935]
[1673814917364,2.190236,20862.0,20861.0,0.00848935]
[1673814917874,2.282236,20862.0,20861.0,0.00848935]
[1673814921848,2.190236,20862.0,20861.0,0.00848935]
[1673814922093,2.274236,20862.0,20861.0,0.00948935]
[1673814924564,2.159536,20862.0,20861.0,0.00948935]
[1673814929897,2.159536,20862.0,20861.0,0.89753139]
[1673814929898,1.680196,20862.0,20861.0,0.89753139]
[1673814930166,1.680196,20862.0,20861.0,0.70680544]
[1673814930167,1.04268,20862.0,20861.0,0.70680544]
[1673814930676,0.084,20862.0,20861.0,0.70680544]
[1673814930946,0.479319,20863.0,20861.0,0.70580544]
[1673814931248,0.084,20862.0,20861.0,0.70680544]
[1673814931464,0.479319,20863.0,20861.0,0.70580544]
[1673814931713,0.083,20862.0,20861.0,0.70680544]
[1673814931983,0.479319,20863.0,20861.0,0.70580544]
[1673814932250,0.562319,20863.0,20861.0,0.70680544]
[1673814933567,0.562319,20863.0,20861.0,0.70180544]
[1673814934072,0.479319,20863.0,20861.0,0.70080544]
[1673814934327,0.562319,20863.0,20861.0,0.70180544]
[1673814934585,0.562319,20863.0,20861.0,0.00448935]
[1673814934829,0.149676,20862.0,20861.0,0.00448935]
[1673814935082,0.629016,20862.0,20861.0,0.00448935]
[1673814935592,0.629016,20862.0,20861.0,0.00348935]
[1673814935844,0.711016,20862.0,20861.0,0.00448935]
[1673814937105,0.47934,20862.0,20861.0,0.00348935]
[1673814937627,0.47934,20862.0,20861.0,0.00448935]
[1673814937628,0.56134,20862.0,20861.0,0.00448935]
[1673814937886,0.47934,20862.0,20861.0,0.00348935]
[1673814938139,0.56234,20862.0,20861.0,0.00448935]
[1673814938363,0.47934,20862.0,20861.0,0.00348935]
[1673814938637,0.46934,20862.0,20861.0,0.00348935]
[1673814938900,0.55234,20862.0,20861.0,0.07910935]
[1673814939380,0.55234,20862.0,20861.0,0.00448935]
[1673814939636,0.55234,20862.0,20861.0,0.07910935]
[1673814939885,0.46934,20862.0,20861.0,0.07810935]
[1673814940208,0.55234,20862.0,20861.0,0.07910935]
[1673814940414,0.46934,20862.0,20861.0,0.07810935]
[1673814940644,0.55234,20862.0,20861.0,0.00448935]
[1673814940893,0.55234,20862.0,20861.0,0.00348935]
[1673814941143,0.63534,20862.0,20861.0,0.00448935]
[1673814941388,0.46934,20862.0,20861.0,0.00348935]
[1673814941632,0.55234,20862.0,20861.0,0.00448935]
[1673814941885,0.55234,20862.0,20861.0,0.14834189]
[1673814942141,0.083,20862.0,20861.0,0.07910935]
[1673814942907,0.083,20862.0,20861.0,0.00448935]
[1673814943410,0.56234,20862.0,20861.0,0.00448935]
[1673814943925,0.712016,20862.0,20861.0,0.00448935]
[1673814944181,0.56234,20862.0,20861.0,0.00448935]
[1673814948340,0.712016,20862.0,20861.0,0.00448935]
[1673814948558,0.56234,20862.0,20861.0,0.00448935]
[1673814950020,0.712016,20862.0,20861.0,0.00448935]
[1673814950743,0.56234,20862.0,20861.0,0.00448935]
[1673814951239,1.06217117,20862.0,20861.0,0.00448935]
[1673814952677,1.6095962,20862.0,20861.0,0.00448935]
[1673814952971,1.7592722,20862.0,20861.0,0.00348935]
[1673814953221,1.5265962,20862.0,20861.0,0.00448935]
[1673814953478,1.5265962,20862.0,20861.0,0.00348935]
[1673814953479,1.32397839,20862.0,20861.0,0.00348935]
[1673814953735,1.47365439,20862.0,20861.0,0.00448935]
[1673814953996,1.61088356,20862.0,20861.0,0.00448935]
[1673814954203,1.52788356,20862.0,20861.0,0.00348935]
[1673814954435,1.61088356,20862.0,20861.0,0.00448935]
[1673814954911,1.76055956,20862.0,20861.0,0.00448935]
[1673814955157,1.97777067,20862.0,20861.0,0.00448935]
[1673814955459,1.33384323,20862.0,20861.0,0.00448935]
[1673814955714,1.25084323,20862.0,20861.0,0.00348935]
[1673814955977,1.33384323,20862.0,20861.0,0.00448935]
[1673814956236,1.12513212,20862.0,20861.0,0.00448935]
[1673814956776,1.15713212,20862.0,20861.0,0.00348935]
[1673814958264,1.20766212,20862.0,20861.0,0.00348935]
[1673814958538,1.4315604,20862.0,20861.0,0.00348935]
[1673814959060,1.29166212,20862.0,20861.0,0.00448935]
[1673814959356,1.29166212,20862.0,20861.0,0.00348935]
[1673814959589,1.37566212,20862.0,20861.0,0.00448935]
[1673814960347,1.32513212,20862.0,20861.0,0.00437321]
[1673814960857,1.15777067,20862.0,20861.0,0.00437321]
[1673814961656,0.94267061,20862.0,20861.0,0.00437321]
[1673814961918,1.34479587,20862.0,20861.0,0.00437321]
[1673814962157,1.85294303,20862.0,20859.0,1.784e-05]
[1673814962421,1.85294303,20862.0,20858.0,0.01256775]
[1673814962422,0.48249008,20860.0,20858.0,0.01256775]
[1673814962686,0.48249008,20860.0,20857.0,0.01250034]
[1673814962687,3.3996458,20859.0,20857.0,0.01250034]
[1673814962964,0.005946,20856.0,20854.0,0.01382784]
[1673814963312,2.55338169,20855.0,20854.0,0.01382784]
[1673814963734,3.59383122,20855.0,20854.0,0.01382784]
[1673814963990,4.10572489,20855.0,20854.0,0.01382784]
[1673814964249,3.49383122,20855.0,20854.0,0.01382784]
[1673814964517,3.44383122,20855.0,20854.0,0.01382784]
[1673814964757,3.84970934,20855.0,20854.0,0.01382784]
[1673814965301,3.53583122,20855.0,20854.0,0.01382784]
[1673814965557,0.1,20854.0,20852.0,0.01167067]
[1673814965881,3.67443554,20853.0,20852.0,0.01167067]
[1673814966094,3.46684288,20853.0,20852.0,0.01167067]
[1673814966356,4.59821371,20853.0,20852.0,0.01167067]
[1673814966607,4.5982379,20853.0,20852.0,0.01167067]
[1673814967385,3.76711606,20853.0,20852.0,0.01167067]
[1673814967641,4.14495518,20853.0,20852.0,0.01167067]
[1673814967924,3.37085301,20853.0,20852.0,0.01167067]
[1673814968177,4.32204215,20853.0,20852.0,0.01167067]
[1673814968444,4.32204174,20853.0,20852.0,0.01167067]
[1673814968682,1.688817,20853.0,20852.0,0.01167067]
[1673814968945,1.596817,20853.0,20852.0,0.01167067]
[1673814969219,1.688817,20853.0,20852.0,0.01167067]
[1673814969476,1.711817,20853.0,20852.0,0.01167067]
[1673814969795,1.85778714,20853.0,20852.0,0.01167067]
[1673814970495,1.94978714,20853.0,20852.0,0.01167067]
[1673814970754,1.85778714,20853.0,20852.0,0.01167067]
[1673814971011,1.94978714,20853.0,20852.0,0.01167067]
[1673814971738,1.803817,20853.0,20852.0,0.01167067]
[1673814972242,2.28101869,20853.0,20852.0,0.01167067]
[1673814972522,2.39601869,20853.0,20852.0,0.01167067]
[1673814973772,2.28101869,20853.0,20852.0,0.01167067]
[1673814974541,2.70059693,20853.0,20852.0,0.01167067]
[1673814974820,2.6683548,20853.0,20852.0,0.01167067]
[1673814975085,3.08823048,20853.0,20852.0,0.01167067]
[1673814975335,2.6683548,20853.0,20852.0,0.01167067]
[1673814976838,2.6583548,20853.0,20852.0,0.01167067]
[1673814977351,2.27101869,20853.0,20852.0,0.01167067]
[1673814978130,0.092,20853.0,20852.0,0.35159662]
[1673814978393,0.092,20853.0,20852.0,0.59710467]
[1673814979470,0.005946,20856.0,20852.0,1.07667467]
[1673814979722,0.005946,20856.0,20853.0,0.066062]
[1673814980015,0.005946,20856.0,20854.0,0.321199]
[1673814980281,0.009,20853.0,20852.0,1.16834767]
[1673814980534,0.005946,20856.0,20852.0,1.16034767]
[1673814980801,0.005946,20856.0,20853.0,0.66713791]
[1673814980802,0.088946,20856.0,20853.0,0.66713791]
[1673814981087,0.005946,20856.0,20854.0,0.321234]
[1673814981381,0.005946,20856.0,20853.0,1.62521291]
[1673814981642,0.088946,20856.0,20854.0,0.001]
[1673814982422,0.005946,20856.0,20853.0,1.62521291]
[1673814982727,0.088946,20856.0,20853.0,1.62621291]
[1673814982967,0.005946,20856.0,20853.0,1.62521291]
[1673814983226,0.088946,20856.0,20854.0,0.001]
[1673814983480,0.005946,20856.0,20853.0,1.62521291]
[1673814983737,0.088946,20856.0,20853.0,1.62621291]
[1673814984015,0.088946,20856.0,20854.0,0.51393373]
[1673814985522,0.005946,20856.0,20854.0,0.51393373]
[1673814985771,0.088946,20856.0,20854.0,0.51493373]
[1673814986516,0.088946,20856.0,20855.0,0.58565942]
[1673814988302,0.005946,20856.0,20855.0,0.90689342]
[1673814988596,0.005946,20856.0,20855.0,0.001]
[1673814988597,0.088946,20856.0,20855.0,0.001]
[1673814988850,0.238622,20856.0,20855.0,0.001]
[1673814989154,0.34263038,20856.0,20855.0,0.001]
[1673814989366,0.238622,20856.0,20855.0,0.001]
[1673814989875,0.238622,20856.0,20855.0,0.00133]
[1673814992432,0.247122,20856.0,20855.0,0.00133]
[1673814993406,0.38987962,20856.0,20855.0,0.00133]
[1673814995420,0.86935762,20856.0,20855.0,0.00133]
[1673814995674,0.71968162,20856.0,20855.0,0.00133]
[1673814995923,0.86935762,20856.0,20855.0,0.00133]
[1673814996138,0.71968162,20856.0,20855.0,0.00133]
[1673814996384,0.097446,20856.0,20855.0,0.00133]
[1673814997164,0.088946,20856.0,20855.0,0.72814543]
[1673814997419,0.088946,20856.0,20855.0,0.84891417]
[1673814997931,0.088946,20856.0,20855.0,1.17014817]
[1673814998708,0.088946,20856.0,20855.0,1.04937943]
[1673814998958,0.088946,20856.0,20855.0,0.72814543]
[1673814999968,0.088946,20856.0,20855.0,0.72802585]
[1673815003487,0.088946,20856.0,20855.0,1.04925985]
[1673815003731,0.088946,20856.0,20855.0,0.72802585]
[1673815004491,0.088946,20856.0,20855.0,0.86021263]
[1673815004738,0.088946,20856.0,20855.0,1.04892985]
[1673815004984,0.088946,20856.0,20855.0,0.72769585]
[1673815005538,0.088946,20856.0,20855.0,1.04892985]
[1673815006077,0.088946,20856.0,20855.0,0.65311585]
[1673815006952,0.08885345,20856.0,20855.0,0.65311585]
[1673815007670,0.08885345,20856.0,20855.0,0.57849585]
[1673815009990,0.08885345,20856.0,20855.0,0.89972985]
[1673815010738,0.08885345,20856.0,20855.0,0.90000985]
[1673815012647,0.08885345,20856.0,20855.0,1.29262137]
[1673815012892,0.08885345,20856.0,20855.0,2.1147667]
[1673815013139,0.08885345,20856.0,20855.0,2.30842058]
[1673815013373,0.08885345,20856.0,20855.0,1.89965633]
[1673815013623,0.00585345,20856.0,20855.0,1.89877591]
[1673815013869,0.00585345,20856.0,20855.0,1.48942191]
[1673815013870,0.01285345,20856.0,20855.0,1.48942191]
[1673815014102,0.01285345,20856.0,20855.0,1.346015]
[1673815014645,0.01285345,20856.0,20855.0,2.06657226]
[1673815014831,0.01285345,20856.0,20855.0,1.79316535]
[1673815014832,0.00585345,20856.0,20855.0,1.79316535]
[1673815015080,0.00585345,20856.0,20855.0,1.19618819]
[1673815015346,0.00585345,20856.0,20855.0,1.3545951]
[1673815015347,0.01285345,20856.0,20855.0,1.3545951]
[1673815015585,0.01285345,20856.0,20855.0,1.3395951]
[1673815015815,0.01985345,20856.0,20855.0,1.3545951]
[1673815016054,0.00585345,20856.0,20855.0,1.3395951]
[1673815016303,0.01285345,20856.0,20855.0,1.3545951]
[1673815016790,0.01285345,20856.0,20855.0,1.7632969]
[1673815017827,0.01285345,20856.0,20855.0,2.04424399]
[1673815018075,0.01285345,20856.0,20855.0,2.39828971]
[1673815018563,0.01285345,20856.0,20855.0,1.98958791]
[1673815019051,0.01285345,20856.0,20855.0,1.35452049]
[1673815019547,0.01285345,20856.0,20855.0,1.91889922]
[1673815019758,0.01285345,20856.0,20855.0,1.56935086]
[1673815020005,0.01285345,20856.0,20855.0,1.99370486]
[1673815020251,0.01285345,20856.0,20855.0,2.1569401]
[1673815020489,0.01285345,20856.0,20855.0,3.04815794]
[1673815020739,0.01285345,20856.0,20855.0,3.4066881]
[1673815021014,0.01285345,20856.0,20855.0,2.44357222]
[1673815021544,0.01285345,20856.0,20855.0,3.26313858]
[1673815021791,0.01285345,20856.0,20855.0,2.44357222]
[1673815022060,0.01285345,20856.0,20855.0,3.26315766]
[1673815022325,0.01285345,20856.0,20855.0,3.26314777]
[1673815022550,0.01285345,20856.0,20855.0,2.44357222]
[1673815023247,0.01285345,20856.0,20855.0,3.2502195]
[1673815023477,0.01285345,20856.0,20855.0,2.44357222]
[1673815023956,0.01285345,20856.0,20855.0,2.01921822]
[1673815024204,0.01285345,20856.0,20855.0,2.44357222]
[1673815024907,0.01285345,20856.0,20855.0,2.01921822]
[1673815025137,0.01285345,20856.0,20855.0,1.92313035]
[1673815025379,0.01285345,20856.0,20855.0,2.93851349]
[1673815025613,0.01285345,20856.0,20855.0,3.18497754]
[1673815025854,0.01470337,20857.0,20855.0,3.93892866]
[1673815026108,0.01470337,20857.0,20856.0,1.74971854]
[1673815026358,0.00528839,20860.0,20857.0,1.839715]
[1673815026590,0.00528839,20860.0,20859.0,0.371124]
[1673815026826,0.00528839,20860.0,20859.0,2.835039]
[1673815027756,0.00528839,20860.0,20859.0,2.691915]
[1673815028003,0.00528839,20860.0,20859.0,2.789915]
[1673815028227,0.00528839,20860.0,20859.0,3.74650437]
[1673815028452,0.00528839,20860.0,20859.0,3.32215037]
[1673815029161,0.00528839,20860.0,20859.0,2.652061]
[1673815029388,0.00528839,20860.0,20859.0,3.174415]
[1673815029615,0.00528839,20860.0,20859.0,2.750061]
[1673815029839,0.00528839,20860.0,20859.0,3.174415]
[1673815030735,0.00528839,20860.0,20859.0,3.076415]
[1673815030974,0.00528839,20860.0,20859.0,3.24587764]
[1673815031217,0.00528839,20860.0,20859.0,2.744061]
[1673815031448,0.00528839,20860.0,20859.0,3.36126666]
[1673815032342,0.00528839,20860.0,20859.0,1.260152]
[1673815032703,0.00528839,20860.0,20859.0,0.872743]
[1673815033555,0.00528839,20860.0,20859.0,0.780743]
[1673815033746,0.00528839,20860.0,20859.0,0.872743]
[1673815034011,0.00528839,20860.0,20859.0,0.780743]
[1673815034223,0.00528839,20860.0,20859.0,0.792743]
[1673815039187,0.00528839,20860.0,20859.0,1.092743]
[1673815039427,0.00528839,20860.0,20859.0,0.792743]
[1673815039905,0.00528839,20860.0,20859.0,1.092743]
[1673815040921,0.00528839,20860.0,20859.0,0.313334]
[1673815041852,0.00528839,20860.0,20859.0,0.012]
[1673815042369,0.00528839,20860.0,20859.0,0.333311]
[1673815042617,0.00528839,20860.0,20859.0,0.012]
[1673815045615,0.00528839,20860.0,20859.0,0.333311]
[1673815045852,0.00528839,20860.0,20859.0,0.43980888]
[1673815046796,0.00528839,20860.0,20859.0,0.11849788]
[1673815048543,0.00528839,20860.0,20859.0,0.012]
[1673815051089,0.00519834,20860.0,20859.0,0.012]
[1673815056605,0.00519834,20860.0,20859.0,0.20272595]
[1673815056886,0.00519834,20860.0,20859.0,1.73061313]
[1673815057093,0.00519834,20860.0,20859.0,1.255844]
[1673815057327,0.00519834,20860.0,20859.0,2.33302171]
[1673815057567,0.00519834,20860.0,20859.0,2.18952844]
[1673815057799,0.00519834,20860.0,20859.0,2.33302364]
[1673815058564,0.00519834,20860.0,20859.0,1.66604858]
[1673815058801,0.00519834,20860.0,20859.0,2.63271022]
[1673815059039,0.00519834,20860.0,20859.0,1.80880197]
[1673815059268,0.00519834,20860.0,20859.0,2.77552213]
[1673815059524,0.00519834,20860.0,20859.0,2.63295703]
[1673815060445,0.04903535,20864.0,20859.0,2.63295703]
[1673815060706,0.04903535,20864.0,20860.0,0.68022262]
[1673815060966,0.04903535,20864.0,20861.0,1.279991]
[1673815061208,0.04903535,20864.0,20862.0,0.045995]
[1673815061455,0.04903535,20864.0,20863.0,0.321242]
[1673815061696,0.14831635,20865.0,20862.0,0.479322]
[1673815061697,0.14831635,20865.0,20862.0,0.958641]
[1673815061967,0.14831635,20865.0,20863.0,0.321311]
[1673815062204,0.14831635,20865.0,20864.0,0.1279952]
[1673815062697,0.15631635,20865.0,20864.0,0.1279952]
[1673815062950,0.14831635,20865.0,20864.0,0.1279952]
[1673815063280,0.15631635,20865.0,20864.0,0.1349952]
[1673815063505,0.14831635,20865.0,20864.0,0.1279952]
[1673815063745,0.15631635,20865.0,20864.0,0.1349952]
[1673815066693,0.01355873,20865.0,20864.0,0.1349952]
[1673815067983,0.15631635,20865.0,20864.0,0.007]
[1673815070580,0.01355873,20865.0,20864.0,0.007]
[1673815072850,0.15631635,20865.0,20864.0,0.00688393]
[1673815074581,0.68726427,20865.0,20864.0,0.00688393]
[1673815074834,0.80622527,20865.0,20864.0,0.00688393]
[1673815075087,1.10332569,20865.0,20864.0,0.00688393]
[1673815075340,1.46059435,20865.0,20864.0,0.00688393]
[1673815075584,0.80721577,20865.0,20864.0,0.00688393]
[1673815075843,0.63772477,20865.0,20864.0,0.00688393]
[1673815076594,0.35188565,20865.0,20864.0,0.00688393]
[1673815076899,0.63567665,20865.0,20864.0,0.00688393]
[1673815077372,0.7791031,20865.0,20864.0,0.00688393]
[1673815078393,0.39448518,20865.0,20864.0,0.00688393]
[1673815078620,0.6096121,20865.0,20864.0,0.00688393]
[1673815078869,0.7791031,20865.0,20864.0,0.00688393]
[1673815079113,0.56397618,20865.0,20864.0,0.00688393]
[1673815080599,0.39448518,20865.0,20864.0,0.00688393]
[1673815081616,0.13635873,20865.0,20864.0,0.16205114]
[1673815081878,0.12785873,20865.0,20864.0,0.16205114]
[1673815082408,0.12785873,20865.0,20864.0,0.00688393]
[1673815083677,0.01355873,20865.0,20864.0,0.00688393]
[1673815085715,0.15698518,20865.0,20864.0,0.00688393]
[1673815085972,0.4871121,20865.0,20864.0,0.00688393]
[1673815086185,0.6566031,20865.0,20864.0,0.00688393]
[1673815086452,0.48711662,20865.0,20864.0,0.00688393]
[1673815086709,0.34368565,20865.0,20864.0,0.00688393]
[1673815086991,1.81883047,20865.0,20864.0,0.00688393]
[1673815087241,2.35273336,20865.0,20864.0,0.00688393]
[1673815087503,1.99417642,20865.0,20864.0,0.00688393]
[1673815087755,0.00459195,20863.0,20859.0,0.53420344]
[1673815088004,0.114,20861.0,20859.0,0.53420344]
[1673815088294,0.114,20861.0,20858.0,0.479424]
[1673815089014,0.114,20861.0,20858.0,0.97696385]
[1673815089267,0.115,20861.0,20859.0,0.078]
[1673815090532,0.114,20861.0,20858.0,0.49753985]
[1673815090825,0.115,20861.0,20858.0,0.57553985]
[1673815091031,0.114,20861.0,20858.0,0.49753985]
[1673815091246,0.129,20861.0,20859.0,0.004]
[1673815091502,0.114,20861.0,20858.0,0.49753985]
[1673815091749,0.114,20861.0,20858.0,0.51053985]
[1673815091999,0.114,20861.0,20858.0,0.49743766]
[1673815092242,0.129,20861.0,20859.0,0.004]
[1673815092489,0.114,20861.0,20858.0,0.49743766]
[1673815092748,0.25742344,20861.0,20858.0,0.49743766]
[1673815093247,0.114,20861.0,20858.0,0.49743766]
[1673815093734,0.114,20861.0,20858.0,0.51043766]
[1673815095670,0.114,20861.0,20858.0,0.49543766]
[1673815095939,0.01404525,20860.0,20858.0,0.49543766]
[1673815097680,0.01404525,20860.0,20858.0,0.48243766]
[1673815097896,0.01504525,20860.0,20858.0,0.56143766]
[1673815099378,0.001,20860.0,20858.0,0.56143766]
[1673815104310,0.01458302,20860.0,20858.0,0.56143766]
[1673815105346,0.001,20860.0,20858.0,0.56143766]
[1673815106104,0.001,20860.0,20859.0,0.51819518]
[1673815106356,0.001,20860.0,20859.0,0.83950618]
[1673815106857,0.001,20860.0,20859.0,0.6579898]
[1673815107121,0.12980231,20861.0,20859.0,0.6579898]
[1673815107581,0.12980231,20861.0,20859.0,0.6709898]
[1673815108607,0.114,20861.0,20859.0,0.6579898]
[1673815108880,0.129,20861.0,20859.0,0.6619898]
[1673815109108,0.129,20861.0,20860.0,0.321311]
[1673815109348,0.129,20861.0,20859.0,0.52219518]
[1673815110098,0.114,20861.0,20859.0,0.51819518]
[1673815110617,0.114,20861.0,20860.0,0.321311]
[1673815110864,0.129,20861.0,20860.0,0.006]
[1673815111177,0.129,20861.0,20860.0,0.08995062]
[1673815111433,0.114,20861.0,20859.0,0.51819518]
[1673815111682,0.129,20861.0,20859.0,0.52219518]
[1673815111928,0.114,20861.0,20859.0,0.51819518]
[1673815112706,0.12857257,20861.0,20859.0,0.51819518]
[1673815112952,0.14357257,20861.0,20860.0,0.006]
[1673815113212,0.12857257,20861.0,20859.0,0.51819518]
[1673815113463,0.14357257,20861.0,20859.0,0.52219518]
[1673815113965,0.04457257,20861.0,20860.0,0.006]
[1673815114217,0.01457257,20861.0,20859.0,0.51819518]
[1673815114730,0.01457257,20861.0,20860.0,0.321311]
[1673815115228,0.50657398,20863.0,20860.0,0.321311]
[1673815115229,0.14801539,20863.0,20860.0,0.321311]
[1673815115479,0.14801539,20863.0,20861.0,0.045981]
[1673815115734,0.00459195,20863.0,20862.0,0.321277]
[1673815115986,0.01309195,20863.0,20862.0,0.1260392]
[1673815116238,0.02976285,20863.0,20860.0,0.479386]
[1673815116489,0.18718629,20863.0,20860.0,0.486386]
[1673815116746,0.17318629,20863.0,20860.0,0.479386]
[1673815116998,0.18718629,20863.0,20862.0,0.007]
[1673815117512,0.17318629,20863.0,20860.0,1.14751629]
[1673815117730,0.18718629,20863.0,20861.0,0.16269223]
[1673815117987,0.17318629,20863.0,20861.0,0.63800914]
[1673815118953,0.18706817,20863.0,20862.0,0.007]
[1673815119222,0.02964473,20863.0,20862.0,0.0539599]
[1673815119478,0.04364473,20863.0,20862.0,0.0539599]
[1673815119986,0.02964473,20863.0,20862.0,0.0539599]
[1673815120235,0.01297383,20863.0,20862.0,0.0539599]
[1673815120484,0.01297383,20863.0,20862.0,0.0609599]
[1673815120485,0.02697383,20863.0,20862.0,0.0609599]
[1673815120752,0.01847383,20863.0,20862.0,0.0609599]
[1673815122017,0.01847383,20863.0,20862.0,0.5402999]
[1673815123298,0.01847383,20863.0,20862.0,1.01309667]
[1673815124567,0.01847383,20863.0,20862.0,1.33440767]
[1673815124809,0.01847383,20863.0,20862.0,1.01309667]
[1673815125812,0.01847383,20863.0,20862.0,1.33440767]
[1673815126066,0.01847383,20863.0,20862.0,1.01309667]
[1673815127314,0.01847383,20863.0,20862.0,1.33440767]
[1673815128067,0.01847383,20863.0,20862.0,1.63440767]
[1673815135150,0.03173702,20863.0,20862.0,0.007]
[1673815135650,0.20122802,20863.0,20862.0,0.007]
[1673815135913,0.34465146,20863.0,20862.0,0.007]
[1673815139296,0.16516046,20863.0,20862.0,0.007]
[1673815139517,0.33465146,20863.0,20862.0,0.007]
[1673815140266,0.16516046,20863.0,20862.0,0.007]
[1673815141317,0.33465146,20863.0,20862.0,0.007]
[1673815141621,0.34315146,20863.0,20862.0,0.002]
[1673815142593,0.55828662,20863.0,20862.0,0.002]
[1673815142852,0.41486318,20863.0,20862.0,0.002]
[1673815143140,0.5582941,20863.0,20862.0,0.002]
[1673815143873,0.6732941,20863.0,20862.0,0.002]
[1673815144376,0.45815894,20863.0,20862.0,0.002]
[1673815144619,0.6732941,20863.0,20862.0,0.002]
[1673815147568,0.52986318,20863.0,20862.0,0.002]
[1673815147839,0.81671005,20863.0,20862.0,0.002]
[1673815148815,0.52986318,20863.0,20862.0,0.002]
[1673815150771,0.67334269,20863.0,20862.0,0.002]
[1673815151024,0.52986318,20863.0,20862.0,0.002]
[1673815151283,0.67334488,20863.0,20862.0,0.002]
[1673815152281,0.50385388,20863.0,20862.0,0.002]
[1673815152779,0.67334488,20863.0,20862.0,0.002]
[1673815153319,0.45820972,20863.0,20862.0,0.002]
[1673815153816,0.34320972,20863.0,20862.0,0.002]
[1673815154082,0.38885388,20863.0,20862.0,0.002]
[1673815154570,0.17371872,20863.0,20862.0,0.002]
[1673815155336,0.17371872,20863.0,20862.0,0.06515342]
[1673815155608,0.38885388,20863.0,20862.0,0.06515342]
[1673815155843,0.55834488,20863.0,20862.0,0.002]
[1673815156098,0.38885388,20863.0,20862.0,0.002]
[1673815156339,0.55834488,20863.0,20862.0,0.002]
[1673815156866,0.38885388,20863.0,20862.0,0.002]
[1673815157328,0.55834488,20863.0,20862.0,0.002]
[1673815157835,0.24537218,20863.0,20862.0,0.002]
[1673815158361,0.41486318,20863.0,20862.0,0.002]
[1673815158614,0.38877967,20863.0,20862.0,0.002]
[1673815159133,0.17364451,20863.0,20862.0,0.06978]
[1673815159449,0.01697383,20863.0,20862.0,0.06978]
[1673815159636,0.01697383,20863.0,20862.0,0.79053004]
[1673815160146,0.00847383,20863.0,20862.0,0.79053004]
[1673815161085,0.00847383,20863.0,20862.0,1.11184104]
[1673815161623,0.00847383,20863.0,20862.0,0.79053004]
[1673815162356,0.15188132,20863.0,20862.0,0.79053004]
[1673815164521,0.00847383,20863.0,20862.0,0.79053004]
[1673815165040,0.00847383,20863.0,20862.0,0.340152]
[1673815165289,0.00847383,20863.0,20862.0,1.36487705]
[1673815165550,0.00847383,20863.0,20862.0,2.14834391]
[1673815165814,0.0083795,20863.0,20862.0,2.57269791]
[1673815166091,0.0083795,20863.0,20862.0,3.40588799]
[1673815166342,0.0083795,20863.0,20862.0,4.05979332]
[1673815166343,7.95e-05,20863.0,20862.0,4.05979332]
[1673815166592,0.00555873,20865.0,20863.0,0.10274009]
[1673815166846,0.00555873,20865.0,20864.0,2.40379071]
[1673815167145,0.00555873,20865.0,20864.0,3.63325473]
[1673815167347,0.00555873,20865.0,20864.0,3.93325473]
[1673815167588,0.00555873,20865.0,20864.0,4.22014403]
[1673815167828,0.00555873,20865.0,20864.0,4.72900241]
[1673815168086,0.00555873,20865.0,20864.0,4.01994888]
[1673815168335,0.00555873,20865.0,20864.0,3.82518486]
[1673815168601,0.00555873,20865.0,20864.0,3.00770139]
[1673815169111,0.00555873,20865.0,20864.0,2.58334739]
[1673815169371,0.00555873,20865.0,20864.0,3.0600154]
[1673815174236,0.00555873,20865.0,20864.0,2.44002508]
[1673815175262,0.00555873,20865.0,20864.0,3.09156917]
[1673815175527,0.00555873,20865.0,20864.0,2.44002508]
[1673815176794,0.00555873,20865.0,20864.0,2.58334739]
[1673815177557,0.00555873,20865.0,20864.0,2.44002508]
[1673815178564,0.00555873,20865.0,20864.0,2.86434198]
[1673815178809,0.00555873,20865.0,20864.0,3.00766429]
[1673815179564,0.00555873,20865.0,20864.0,2.86434198]
[1673815179810,0.00555873,20865.0,20864.0,2.44002508]
[1673815180840,0.00555873,20865.0,20864.0,3.13052508]
[1673815182576,0.00555873,20865.0,20864.0,3.69820139]
[1673815182826,0.00555873,20865.0,20864.0,3.69812066]
[1673815183886,0.00555873,20865.0,20864.0,3.00802066]
[1673815184150,0.00555873,20865.0,20864.0,3.18286219]
[1673815184403,0.00555873,20865.0,20864.0,2.9484095]
[1673815186401,0.00555873,20865.0,20864.0,2.44034435]
[1673815186931,0.00555873,20865.0,20864.0,2.32534435]
[1673815187194,0.00555873,20865.0,20864.0,2.95764984]
[1673815187670,0.00555873,20865.0,20864.0,2.32534435]
[1673815188142,0.00555873,20865.0,20864.0,2.8814648]
[1673815188384,0.00555873,20865.0,20864.0,2.32534435]
[1673815189150,0.00555873,20865.0,20864.0,2.83321319]
[1673815189907,0.00555873,20865.0,20864.0,2.32534435]
[1673815191407,0.00555873,20865.0,20864.0,2.46866666]
[1673815192158,0.00375351,20865.0,20864.0,2.46866666]
[1673815193193,0.00375351,20865.0,20864.0,2.68365013]
[1673815193449,0.00375351,20865.0,20864.0,2.87734793]
[1673815193945,0.00375351,20865.0,20864.0,3.41650193]
[1673815194201,0.00375351,20865.0,20864.0,2.84882562]
[1673815194961,0.00375351,20865.0,20864.0,3.56006892]
[1673815195461,0.00375351,20865.0,20864.0,3.55979281]
[1673815195715,0.00375351,20865.0,20864.0,4.13811295]
[1673815196223,0.00375351,20865.0,20864.0,4.49672458]
[1673815197240,0.00375351,20865.0,20864.0,4.13811295]
[1673815197506,0.00375351,20865.0,20864.0,3.55977934]
[1673815197750,0.00375351,20865.0,20864.0,4.49677936]
[1673815198481,0.00375351,20865.0,20864.0,4.07242536]
[1673815198983,0.00375351,20865.0,20864.0,4.13816773]
[1673815199254,0.00375351,20865.0,20864.0,4.49677936]
[1673815199768,0.00375351,20865.0,20864.0,4.20989006]
[1673815200078,0.00375351,20865.0,20864.0,4.49637847]
[1673815200304,0.00375351,20865.0,20864.0,4.07202447]
[1673815200557,0.00375351,20865.0,20864.0,3.78553606]
[1673815202142,0.00375351,20865.0,20864.0,4.0721856]
[1673815203199,0.00375351,20865.0,20864.0,3.42692443]
[1673815204430,0.00375351,20865.0,20864.0,4.54227843]
[1673815204684,0.00375351,20865.0,20864.0,5.30140684]
[1673815205250,0.00167126,20865.0,20864.0,4.87153728]
[1673815205419,0.00167126,20865.0,20864.0,5.30190197]
[1673815205687,0.00167126,20865.0,20864.0,5.85874285]